bitfinex/quotes_BTCUSD_20250412
["timestamp","ask_amount","ask_price","bid_price","bid_amount"]
[1744466486416,0.249109,84300.0,84297.0,0.00080065]
[1744466486623,0.23727,84292.0,84288.0,0.00080065]
[1744466486824,0.23727,84292.0,84289.0,0.00080065]
[1744466486825,0.40727,84292.0,84289.0,0.00080065]
[1744466487032,0.17,84292.0,84289.0,0.00080065]
[1744466487239,0.40727,84292.0,84289.0,0.00080065]
[1744466488807,0.40727,84292.0,84285.0,0.00080065]
[1744466489744,0.52911154,84292.0,84291.0,0.00300067]
[1744466493623,0.171,84292.0,84291.0,0.00300067]
[1744466494235,0.001,84292.0,84291.0,0.05080132]
[1744466494438,0.001,84300.0,84299.0,0.23725]
[1744466494651,0.001,84300.0,84299.0,0.36126439]
[1744466494881,0.001,84300.0,84299.0,0.56547332]
[1744466495073,0.001,84300.0,84299.0,0.57288695]
[1744466496002,0.011859,84324.0,84321.0,0.00080065]
[1744466496233,0.191859,84324.0,84321.0,0.00080065]
[1744466496454,0.18,84324.0,84322.0,0.00741363]
[1744466496635,0.18,84324.0,84323.0,0.00821428]
[1744466497218,0.18046511,84324.0,84323.0,0.00821428]
[1744466497481,0.18446511,84324.0,84323.0,0.00821428]
[1744466498051,0.18746511,84324.0,84323.0,0.00821428]
[1744466498622,0.18446511,84324.0,84323.0,0.00821428]
[1744466498903,0.18746511,84324.0,84323.0,0.00821428]
[1744466499214,0.19146511,84324.0,84323.0,0.00921428]
[1744466499985,0.01146511,84324.0,84323.0,0.00921428]
[1744466501192,0.02146511,84324.0,84323.0,0.00921428]
[1744466501799,0.01146511,84324.0,84323.0,0.00921428]
[1744466503366,0.01146511,84324.0,84323.0,0.73638429]
[1744466503566,0.01146511,84324.0,84323.0,0.7340129]
[1744466503796,0.00346511,84324.0,84323.0,0.7330129]
[1744466504127,0.00446511,84324.0,84323.0,0.7330129]
[1744466504361,0.00146511,84324.0,84323.0,0.61217136]
[1744466504756,0.01246511,84324.0,84323.0,0.41561071]
[1744466505003,0.01246511,84324.0,84323.0,0.00821428]
[1744466505202,0.00146511,84324.0,84323.0,0.12905582]
[1744466505441,0.00046511,84324.0,84323.0,0.12905582]
[1744466505610,0.00146511,84324.0,84323.0,0.13405582]
[1744466506152,0.00046511,84324.0,84323.0,0.00841363]
[1744466506339,0.00146511,84324.0,84323.0,0.01221428]
[1744466506551,0.01146511,84324.0,84323.0,0.00921428]
[1744466506947,0.01246511,84324.0,84323.0,0.01241363]
[1744466507150,0.01046511,84324.0,84323.0,0.00741363]
[1744466507357,0.01046511,84324.0,84323.0,0.00921428]
[1744466507981,0.01046511,84324.0,84323.0,0.00841363]
[1744466508301,0.24764511,84324.0,84323.0,0.00741363]
[1744466508638,0.01046511,84324.0,84323.0,0.00741363]
[1744466508865,0.00727325,84324.0,84323.0,0.00821428]
[1744466509067,0.00727325,84324.0,84323.0,0.00921428]
[1744466509465,0.00727325,84324.0,84323.0,0.00821428]
[1744466510413,0.00927325,84324.0,84323.0,0.00821428]
[1744466510941,0.01027325,84324.0,84323.0,0.00821428]
[1744466511295,0.00727325,84324.0,84323.0,0.00821428]
[1744466511480,0.01027325,84324.0,84323.0,0.00921428]
[1744466513097,0.01227325,84324.0,84323.0,0.00921428]
[1744466514048,0.01227325,84324.0,84323.0,0.24639728]
[1744466514238,0.01227325,84324.0,84323.0,0.00921428]
[1744466514969,0.01227325,84324.0,84323.0,0.00841363]
[1744466515096,0.13311479,84324.0,84323.0,0.001]
[1744466516911,0.01227325,84324.0,84323.0,0.00180065]
[1744466519530,0.01227325,84324.0,84323.0,0.00921146]
[1744466520349,0.005,84324.0,84323.0,0.00180065]
[1744466520509,0.005,84324.0,84323.0,0.12264219]
[1744466520716,0.005,84324.0,84323.0,0.130053]
[1744466521045,0.005,84324.0,84323.0,0.14085158]
[1744466521420,0.0008468,84326.0,84325.0,0.00080065]
[1744466521681,0.00098623,84326.0,84325.0,0.00080065]
[1744466521912,0.00098623,84326.0,84325.0,0.00821146]
[1744466522814,0.00198623,84326.0,84325.0,0.00821146]
[1744466523720,0.00298623,84326.0,84325.0,0.00821146]
[1744466523962,0.00298623,84326.0,84325.0,0.129053]
[1744466524184,0.00298623,84326.0,84325.0,0.1314245]
[1744466524651,0.00298623,84326.0,84325.0,0.3270245]
[1744466524829,0.00298623,84326.0,84325.0,0.324653]
[1744466528454,2.3e-07,84326.0,84325.0,1.13659093]
[1744466529258,2.3e-07,84326.0,84325.0,1.12205008]
[1744466529652,0.002,84349.0,84344.0,0.237122]
[1744466529968,0.193855,84349.0,84345.0,0.237118]
[1744466530170,0.182,84349.0,84345.0,0.237118]
[1744466530375,0.182,84349.0,84347.0,0.237115]
[1744466530573,0.430967,84349.0,84348.0,0.00741081]
[1744466530822,0.201855,84349.0,84348.0,0.00741081]
[1744466530978,0.201855,84349.0,84344.0,0.00841081]
[1744466531187,0.193855,84349.0,84344.0,0.00741081]
[1744466531510,0.193855,84349.0,84345.0,0.00841081]
[1744466531511,0.24897,84348.0,84345.0,0.00841081]
[1744466531672,0.237118,84346.0,84345.0,0.00741081]
[1744466531875,0.237118,84346.0,84333.0,0.00080065]
[1744466531876,0.237152,84334.0,84333.0,0.00080065]
[1744466532134,0.237157,84332.0,84329.0,0.00080065]
[1744466532348,0.237166,84329.0,84326.0,0.00080065]
[1744466532533,0.237171,84327.0,84325.0,0.05276082]
[1744466532833,0.12084154,84326.0,84325.0,0.05276082]
[1744466533055,0.27084154,84326.0,84325.0,0.05276082]
[1744466533259,0.31714154,84326.0,84325.0,0.05276082]
[1744466534591,0.32314154,84326.0,84325.0,0.05276082]
[1744466535135,0.01186,84312.0,84309.0,0.00080065]
[1744466535327,0.01186,84312.0,84309.0,0.00126576]
[1744466535328,0.19186,84312.0,84309.0,0.00126576]
[1744466536935,0.237216,84311.0,84309.0,0.00126576]
[1744466537229,0.18,84311.0,84309.0,0.00126576]
[1744466537631,0.417217,84311.0,84309.0,0.00126576]
[1744466538133,0.418217,84311.0,84309.0,0.00126576]
[1744466538290,0.182,84311.0,84309.0,0.00126576]
[1744466538713,0.419217,84311.0,84309.0,0.00126576]
[1744466539133,0.182,84311.0,84309.0,0.00126576]
[1744466539488,0.419218,84311.0,84309.0,0.00126576]
[1744466539821,0.182,84311.0,84309.0,0.00126576]
[1744466540423,0.182,84311.0,84310.0,0.00080065]
[1744466541287,0.002,84311.0,84310.0,0.00080065]
[1744466541400,0.001,84311.0,84310.0,0.43887284]
[1744466541600,0.011858,84328.0,84327.0,0.00080065]
[1744466541811,0.16,84328.0,84327.0,0.23797165]
[1744466542408,0.011856,84344.0,84339.0,0.00080065]
[1744466542624,0.011856,84342.0,84339.0,0.00080065]
[1744466542825,0.191856,84342.0,84339.0,0.00080065]
[1744466543063,0.428988,84342.0,84339.0,0.00080065]
[1744466543263,0.18,84342.0,84341.0,0.00080065]
[1744466543865,0.185,84342.0,84341.0,0.00080065]
[1744466544066,0.189,84342.0,84341.0,0.00080065]
[1744466544267,0.184,84342.0,84341.0,0.00080065]
[1744466544469,0.189,84342.0,84341.0,0.00080065]
[1744466544667,0.185,84342.0,84341.0,0.00080065]
[1744466544862,0.189,84342.0,84341.0,0.00080065]
[1744466547048,0.189,84342.0,84341.0,0.23793265]
[1744466547497,0.009,84342.0,84341.0,0.23793265]
[1744466549833,0.011854,84355.0,84348.0,0.23791265]
[1744466550036,0.172,84349.0,84348.0,0.00080065]
[1744466550984,0.178,84349.0,84348.0,0.00080065]
[1744466551185,0.187,84349.0,84348.0,0.00080065]
[1744466551409,0.011857,84338.0,84330.0,0.01105905]
[1744466551620,0.237149,84335.0,84333.0,0.00080065]
[1744466551795,0.249023,84330.0,84327.0,0.00080065]
[1744466551995,0.01186,84314.0,84313.0,0.00080065]
[1744466552206,0.17186,84314.0,84313.0,0.00080065]
[1744466553279,0.17186,84314.0,84311.0,0.07241296]
[1744466553454,0.17186,84314.0,84313.0,0.001]
[1744466553856,0.17186,84314.0,84313.0,0.00180065]
[1744466554082,0.17286,84314.0,84313.0,0.00680065]
[1744466554525,0.161,84314.0,84313.0,0.00680065]
[1744466554867,0.161,84314.0,84313.0,0.24401165]
[1744466556276,0.001,84314.0,84313.0,0.24401165]
[1744466556404,0.001,84314.0,84313.0,0.24638352]
[1744466557195,0.001,84314.0,84313.0,0.00680065]
[1744466557442,0.101,84314.0,84313.0,0.00680065]
[1744466559028,0.001,84314.0,84313.0,0.00680065]
[1744466559233,0.001,84314.0,84313.0,0.00917248]
[1744466560142,0.001,84314.0,84313.0,0.48455487]
[1744466560348,0.001,84314.0,84313.0,0.48959282]
[1744466561304,0.001,84335.0,84334.0,0.23795265]
[1744466561501,0.001,84335.0,84334.0,0.40789419]
[1744466561840,0.001,84335.0,84334.0,0.41530397]
[1744466562042,0.01,84335.0,84334.0,0.00740978]
[1744466562247,0.01,84335.0,84334.0,0.00080065]
[1744466562845,0.01,84335.0,84334.0,0.23795265]
[1744466562974,0.011,84335.0,84334.0,0.23795265]
[1744466563632,0.011,84335.0,84334.0,0.00080065]
[1744466566876,0.001,84335.0,84334.0,0.00080065]
[1744466567043,0.011,84335.0,84334.0,0.00080065]
[1744466567912,0.011855,84348.0,84347.0,0.00080065]
[1744466568113,0.171855,84348.0,84347.0,0.00080065]
[1744466568379,0.0008454,84360.0,84355.0,0.011854]
[1744466568533,6e-07,84369.0,84368.0,0.23785665]
[1744466568750,2e-07,84380.0,84379.0,0.23782565]
[1744466569085,2e-07,84380.0,84379.0,0.69866719]
[1744466569236,2e-07,84380.0,84379.0,0.00820945]
[1744466569437,0.00013979,84380.0,84379.0,0.00820945]
[1744466569867,0.00113979,84380.0,84379.0,0.01420945]
[1744466570042,0.00113979,84380.0,84379.0,0.00680065]
[1744466570228,0.00013979,84380.0,84379.0,0.00080065]
[1744466570423,0.00013979,84380.0,84379.0,0.46401238]
[1744466570680,0.00013979,84380.0,84379.0,0.46164219]
[1744466571285,0.00013979,84380.0,84379.0,0.47104618]
[1744466571486,0.00113979,84380.0,84379.0,0.47604618]
[1744466571686,0.00013979,84380.0,84379.0,0.47104618]
[1744466571891,0.00013979,84380.0,84379.0,0.34820464]
[1744466572100,7.9e-07,84380.0,84379.0,0.97964326]
[1744466572255,0.0008464,84416.0,84408.0,0.00080065]
[1744466572450,0.0008464,84416.0,84408.0,0.00316969]
[1744466572676,0.00331174,84409.0,84408.0,0.00080065]
[1744466572871,0.00331174,84409.0,84408.0,0.12401146]
[1744466574042,0.00331174,84409.0,84408.0,0.13141286]
[1744466574244,0.00331174,84409.0,84408.0,0.12401146]
[1744466574907,0.00431174,84409.0,84408.0,0.15976262]
[1744466575350,0.00331174,84409.0,84408.0,0.15739335]
[1744466575555,0.00531174,84409.0,84408.0,0.15739335]
[1744466575755,4e-07,84416.0,84415.0,0.00080065]
[1744466575958,0.236783,84466.0,84438.0,0.57766065]
[1744466576128,0.0483,84471.0,84438.0,0.55382219]
[1744466576308,0.17213948,84439.0,84438.0,0.19532]
[1744466576662,0.40899648,84439.0,84438.0,0.00080065]
[1744466576817,0.236879,84431.0,84430.0,0.00080065]
[1744466577041,0.011844,84427.0,84426.0,0.00080065]
[1744466577425,0.011844,84425.0,84422.0,0.00080065]
[1744466577636,0.236902,84423.0,84422.0,0.00080065]
[1744466577837,0.396902,84423.0,84422.0,0.00080065]
[1744466578050,0.16,84423.0,84422.0,0.00080065]
[1744466578857,0.163,84423.0,84422.0,0.00080065]
[1744466579377,0.236913,84419.0,84416.0,0.00080065]
[1744466579589,0.236913,84419.0,84397.0,0.011848]
[1744466579590,0.23417034,84415.0,84414.0,0.00080065]
[1744466579792,0.15,84415.0,84414.0,0.00080065]
[1744466580424,0.15,84415.0,84411.0,0.00080065]
[1744466580543,0.15,84415.0,84394.0,0.08379685]
[1744466580544,0.236949,84406.0,84402.0,0.00080065]
[1744466580775,0.248823,84397.0,84395.0,0.00080065]
[1744466580986,0.418823,84397.0,84395.0,0.00080065]
[1744466582019,0.418823,84397.0,84395.0,0.00126559]
[1744466582020,0.183848,84397.0,84395.0,0.00126559]
[1744466582235,0.172,84397.0,84396.0,0.00080065]
[1744466583464,0.177,84397.0,84396.0,0.00080065]
[1744466583956,0.18,84397.0,84396.0,0.00080065]
[1744466584147,0.182,84397.0,84396.0,0.00080065]
[1744466584808,0.418975,84397.0,84395.0,0.00126559]
[1744466585642,0.416975,84397.0,84395.0,0.00126559]
[1744466585796,0.406975,84397.0,84395.0,0.00126559]
[1744466586002,0.410975,84397.0,84395.0,0.00126559]
[1744466587072,0.412975,84397.0,84395.0,0.00126559]
[1744466587641,0.176,84397.0,84396.0,0.00080065]
[1744466588624,0.004,84397.0,84396.0,0.23777865]
[1744466588823,0.004,84397.0,84396.0,0.76918671]
[1744466588997,0.006,84397.0,84396.0,0.64597573]
[1744466589202,0.006,84397.0,84396.0,0.65337851]
[1744466589397,0.002,84397.0,84396.0,0.65337851]
[1744466589731,0.006,84397.0,84396.0,0.65337851]
[1744466590423,0.006,84397.0,84396.0,0.65537851]
[1744466590631,0.004,84397.0,84396.0,0.65537851]
[1744466591756,0.004,84397.0,84396.0,0.65637851]
[1744466592960,0.004,84397.0,84396.0,0.77722005]
[1744466593695,0.004,84397.0,84396.0,0.65637851]
[1744466594259,0.011848,84399.0,84396.0,0.41859986]
[1744466594438,0.236975,84397.0,84396.0,0.41199773]
[1744466594638,0.406975,84397.0,84396.0,0.41199773]
[1744466594906,0.406975,84397.0,84396.0,0.41940213]
[1744466595262,0.406975,84397.0,84396.0,0.41740213]
[1744466595461,0.52781654,84397.0,84396.0,0.0084044]
[1744466595666,0.52781654,84397.0,84396.0,0.001]
[1744466595935,0.52781654,84397.0,84396.0,0.003]
[1744466596306,0.86781654,84397.0,84396.0,0.001]
[1744466596507,0.87664491,84397.0,84396.0,0.003]
[1744466596710,0.87664491,84397.0,84396.0,0.002]
[1744466596875,0.34,84396.0,84395.0,0.00046494]
[1744466597072,0.60877474,84396.0,84395.0,0.00046494]
[1744466597281,0.29084154,84396.0,84395.0,0.00046494]
[1744466598055,0.17,84396.0,84395.0,0.00126559]
[1744466598188,0.17,84396.0,84395.0,0.23824559]
[1744466598390,0.17,84396.0,84395.0,0.00126559]
[1744466598597,0.174,84396.0,84395.0,0.00867084]
[1744466598820,0.179,84396.0,84395.0,0.24565084]
[1744466599147,0.179,84396.0,84395.0,0.00867084]
[1744466599296,0.181,84396.0,84395.0,0.00867084]
[1744466599934,0.177,84396.0,84395.0,0.24565084]
[1744466600096,0.179,84396.0,84395.0,0.24565084]
[1744466600951,0.009,84396.0,84395.0,0.24565084]
[1744466601566,0.011847,84408.0,84405.0,0.00080065]
[1744466601771,0.011847,84409.0,84406.0,0.00080065]
[1744466601995,0.236947,84408.0,84406.0,0.00080065]
[1744466602337,0.406947,84408.0,84406.0,0.00080065]
[1744466602970,0.236966,84400.0,84398.0,0.00740525]
[1744466603167,0.52780754,84400.0,84398.0,0.00740525]
[1744466603398,0.12084154,84399.0,84398.0,0.00740525]
[1744466603598,0.24882,84398.0,84395.0,0.00046494]
[1744466603803,0.236978,84396.0,84395.0,0.00046494]
[1744466604005,0.50781954,84396.0,84395.0,0.00046494]
[1744466605480,0.388978,84396.0,84395.0,0.00046494]
[1744466605916,0.154,84396.0,84395.0,0.00126559]
[1744466607199,0.152,84396.0,84395.0,0.00126559]
[1744466607398,0.153,84396.0,84395.0,0.00046494]
[1744466607806,0.27184154,84396.0,84395.0,0.00046494]
[1744466608223,0.27284154,84396.0,84395.0,0.00046494]
[1744466608424,0.61284154,84396.0,84395.0,0.00046494]
[1744466608635,0.70554154,84396.0,84395.0,0.00046494]
[1744466608835,0.71908239,84396.0,84395.0,9.4e-07]
[1744466609147,0.72908239,84396.0,84395.0,9.4e-07]
[1744466609493,0.72308239,84396.0,84395.0,9.4e-07]
[1744466609888,0.89780194,84396.0,84395.0,9.4e-07]
[1744466610146,0.89380194,84396.0,84395.0,9.4e-07]
[1744466610348,0.89980194,84396.0,84395.0,9.4e-07]
[1744466610525,0.90380194,84396.0,84395.0,9.4e-07]
[1744466610963,0.89980194,84396.0,84395.0,9.4e-07]
[1744466611346,0.90680194,84396.0,84395.0,9.4e-07]
[1744466611691,0.88626109,84396.0,84395.0,9.4e-07]
[1744466611861,0.89726109,84396.0,84395.0,0.00100094]
[1744466612066,1.09230109,84396.0,84395.0,0.00100094]
[1744466612599,0.89726109,84396.0,84395.0,0.00100094]
[1744466612797,1.09230109,84396.0,84395.0,0.00100094]
[1744466612999,1.22757042,84396.0,84395.0,9.4e-07]
[1744466613175,1.10684194,84396.0,84395.0,9.4e-07]
[1744466614864,1.09230109,84396.0,84395.0,9.4e-07]
[1744466615693,1.10684194,84396.0,84395.0,9.4e-07]
[1744466619272,1.09230109,84396.0,84395.0,9.4e-07]
[1744466619970,0.99860109,84396.0,84395.0,9.4e-07]
[1744466621851,0.46356109,84396.0,84395.0,9.4e-07]
[1744466623182,0.34271955,84396.0,84395.0,0.00080159]
[1744466625437,0.46356109,84396.0,84395.0,9.4e-07]
[1744466626339,0.28884154,84396.0,84395.0,9.4e-07]
[1744466626869,0.62884154,84396.0,84395.0,9.4e-07]
[1744466627227,0.64338239,84396.0,84395.0,9.4e-07]
[1744466627657,0.68968239,84396.0,84395.0,9.4e-07]
[1744466628417,0.64338239,84396.0,84395.0,9.4e-07]
[1744466628668,0.62884154,84396.0,84395.0,9.4e-07]
[1744466628896,0.82372154,84396.0,84395.0,9.4e-07]
[1744466634917,0.62884154,84396.0,84395.0,9.4e-07]
[1744466635690,0.01185,84388.0,84385.0,0.00080065]
[1744466635999,0.12084154,84387.0,84385.0,0.00080065]
[1744466636190,0.50784454,84387.0,84385.0,0.00080065]
[1744466638689,0.51284454,84387.0,84385.0,0.00080065]
[1744466639546,0.51584454,84387.0,84385.0,0.00080065]
[1744466640770,0.237008,84385.0,84384.0,0.00080065]
[1744466640917,0.417008,84385.0,84384.0,0.00080065]
[1744466641966,0.420008,84385.0,84384.0,0.00080065]
[1744466642169,0.425008,84385.0,84384.0,0.00080065]
[1744466643452,0.188,84385.0,84384.0,0.00080065]
[1744466644219,0.188,84385.0,84384.0,0.0082065]
[1744466644416,0.188,84385.0,84384.0,0.00800716]
[1744466644787,0.183,84385.0,84384.0,0.00800716]
[1744466645189,0.184,84385.0,84384.0,0.00800716]
[1744466645463,0.184,84385.0,84384.0,0.00060131]
[1744466645622,0.187,84385.0,84384.0,0.00060131]
[1744466648180,0.184,84385.0,84384.0,0.00060131]
[1744466648357,0.18,84385.0,84384.0,0.00060131]
[1744466648709,0.182,84385.0,84384.0,0.00060131]
[1744466649326,0.14496885,84385.0,84384.0,0.00060131]
[1744466649507,0.14496885,84385.0,84384.0,0.00800716]
[1744466649906,0.14496885,84385.0,84384.0,0.00060131]
[1744466653053,0.14496885,84385.0,84384.0,0.00800716]
[1744466654418,0.14296885,84385.0,84384.0,0.00800716]
[1744466654805,0.14296885,84385.0,84384.0,0.00900716]
[1744466655879,0.37997685,84385.0,84384.0,0.00900716]
[1744466656085,0.37997685,84385.0,84384.0,0.00160131]
[1744466656339,0.37997685,84385.0,84384.0,0.001]
[1744466656551,0.50081839,84385.0,84384.0,0.001]
[1744466656756,0.60066993,84385.0,84384.0,0.001]
[1744466656963,0.237053,84369.0,84368.0,0.00013959]
[1744466657163,0.237065,84365.0,84364.0,0.07194785]
[1744466657291,0.53790654,84365.0,84364.0,0.07194785]
[1744466657832,0.54899568,84365.0,84364.0,0.07194785]
[1744466658444,0.55099568,84365.0,84364.0,0.07194785]
[1744466659231,0.55399568,84365.0,84364.0,0.07194785]
[1744466659411,0.185,84365.0,84364.0,0.07194785]
[1744466661657,0.185,84365.0,84361.0,0.0008444]
[1744466661658,0.011853,84364.0,84361.0,0.0008444]
[1744466661859,0.161853,84364.0,84361.0,0.0008444]
[1744466662633,0.23707,84363.0,84361.0,0.0008444]
[1744466662792,0.40707,84363.0,84361.0,0.0008444]
[1744466663514,0.52791154,84363.0,84361.0,0.0008444]
[1744466664510,0.52891154,84363.0,84361.0,0.0008444]
[1744466664712,0.12084154,84362.0,84361.0,0.0008444]
[1744466664878,0.31084154,84362.0,84361.0,0.0008444]
[1744466665756,0.237076,84361.0,84330.0,0.0008446]
[1744466665960,0.23716,84331.0,84330.0,0.0008446]
[1744466666162,0.40716,84331.0,84330.0,0.0008446]
[1744466666785,0.17,84331.0,84330.0,0.0008446]
[1744466667704,0.171,84331.0,84330.0,0.0008446]
[1744466667919,0.171,84331.0,84330.0,0.0058446]
[1744466668119,0.171,84331.0,84330.0,0.0008446]
[1744466668468,0.172,84331.0,84330.0,0.0008446]
[1744466674099,0.171,84331.0,84330.0,0.0008446]
[1744466674325,0.17,84331.0,84330.0,0.0008446]
[1744466674530,0.35072954,84370.0,84330.0,0.0008446]
[1744466674531,0.011855,84348.0,84340.0,0.011856]
[1744466674733,0.011855,84346.0,84340.0,0.011856]
[1744466674895,0.191855,84346.0,84340.0,0.011856]
[1744466675473,0.011856,84343.0,84339.0,0.011856]
[1744466675605,0.021856,84343.0,84339.0,0.011856]
[1744466675814,0.01,84343.0,84340.0,0.011856]
[1744466676228,0.01,84343.0,84339.0,0.011856]
[1744466676419,0.01,84343.0,84340.0,0.011856]
[1744466676964,0.01,84343.0,84338.0,0.011857]
[1744466676965,0.011856,84342.0,84338.0,0.011857]
[1744466677167,0.021856,84342.0,84338.0,0.011857]
[1744466678231,0.022856,84342.0,84338.0,0.011857]
[1744466678435,0.023856,84342.0,84338.0,0.011857]
[1744466679039,0.012,84342.0,84339.0,0.011856]
[1744466679519,0.011856,84341.0,84335.0,0.011857]
[1744466679728,0.23716,84331.0,84330.0,0.0008446]
[1744466679927,0.41716,84331.0,84330.0,0.0008446]
[1744466680131,0.18,84331.0,84330.0,0.0008446]
[1744466680741,0.18,84331.0,84330.0,0.5780076]
[1744466680967,0.011854,84355.0,84348.0,0.011855]
[1744466681202,0.011854,84355.0,84349.0,0.011855]
[1744466681203,0.00013936,84353.0,84349.0,0.011855]
[1744466681343,0.17013936,84353.0,84348.0,0.011855]
[1744466681552,0.17013936,84353.0,84349.0,0.011855]
[1744466681887,0.17013936,84353.0,84352.0,0.237101]
[1744466681888,0.01013936,84353.0,84352.0,0.237101]
[1744466684549,0.01613936,84353.0,84352.0,0.237101]
[1744466685122,0.01713936,84353.0,84352.0,0.237101]
[1744466690285,0.01713936,84353.0,84339.0,0.284038]
[1744466690476,0.011855,84350.0,84346.0,0.011855]
[1744466690591,0.17,84350.0,84348.0,0.011855]
[1744466691356,0.17,84350.0,84348.0,0.248966]
[1744466692098,0.17,84350.0,84348.0,0.249966]
[1744466692503,0.17,84350.0,84348.0,0.012855]
[1744466693718,0.17,84350.0,84348.0,0.001]
[1744466694279,0.23711,84349.0,84348.0,0.001]
[1744466694480,0.40711,84349.0,84348.0,0.001]
[1744466695089,0.17,84349.0,84348.0,0.001]
[1744466695284,0.17,84349.0,84346.0,0.248972]
[1744466695801,0.183855,84349.0,84346.0,0.237117]
[1744466695964,0.183855,84349.0,84344.0,0.248978]
[1744466696160,0.173,84349.0,84346.0,0.011855]
[1744466696644,0.173,84349.0,84346.0,0.248971]
[1744466696817,0.173,84349.0,84346.0,0.237116]
[1744466696975,0.184855,84349.0,84346.0,0.237116]
[1744466697198,0.173,84349.0,84346.0,0.237116]
[1744466697365,0.173,84349.0,84348.0,0.237112]
[1744466697366,0.171,84349.0,84348.0,0.237112]
[1744466697565,0.17,84349.0,84347.0,0.237113]
[1744466697763,0.172,84349.0,84347.0,0.237113]
[1744466698432,0.171,84349.0,84347.0,0.237113]
[1744466698960,0.172,84349.0,84347.0,0.237113]
[1744466699252,0.171,84349.0,84347.0,0.237113]
[1744466700580,0.001,84349.0,84348.0,0.00237104]
[1744466700777,0.001,84349.0,84347.0,0.237113]
[1744466700915,0.001,84349.0,84348.0,0.00237073]
[1744466701111,0.001,84349.0,84348.0,0.96680935]
[1744466701334,1e-06,84349.0,84348.0,0.97897947]
[1744466701740,0.00013936,84353.0,84352.0,0.577101]
[1744466702423,0.00013936,84353.0,84352.0,0.89246254]
[1744466702791,3.6e-07,84353.0,84352.0,1.31520047]
[1744466702991,0.0004228,84384.0,84383.0,0.237014]
[1744466703217,0.0004228,84384.0,84383.0,0.23938381]
[1744466703392,0.00056229,84384.0,84383.0,0.237014]
[1744466703914,0.00056229,84384.0,84383.0,0.2483067]
[1744466704269,0.00056229,84384.0,84383.0,0.36914824]
[1744466706258,0.00056229,84384.0,84383.0,0.31917518]
[1744466707623,0.00056229,84384.0,84383.0,0.19833364]
[1744466707987,0.00056229,84384.0,84383.0,0.32154497]
[1744466708195,0.00056229,84384.0,84383.0,0.65917518]
[1744466708402,0.00056229,84384.0,84383.0,1.06737226]
[1744466708602,0.00056229,84384.0,84383.0,1.08191311]
[1744466708826,2.9e-07,84384.0,84383.0,2.30175311]
[1744466710098,0.248802,84404.0,84400.0,0.011848]
[1744466710303,0.01,84404.0,84403.0,0.236958]
[1744466712250,0.01,84404.0,84403.0,0.35779954]
[1744466712489,0.00246485,84409.0,84408.0,0.236944]
[1744466712692,0.02246485,84409.0,84408.0,0.236944]
[1744466713626,0.02246485,84409.0,84406.0,0.248794]
[1744466713841,0.02346485,84409.0,84408.0,0.236944]
[1744466713988,0.02546485,84409.0,84408.0,0.236944]
[1744466714192,0.011847,84404.0,84398.0,0.34]
[1744466714396,0.248793,84408.0,84403.0,0.011847]
[1744466714560,0.011847,84405.0,84398.0,0.34]
[1744466714768,0.021847,84405.0,84401.0,0.011848]
[1744466714971,0.01,84405.0,84402.0,0.248806]
[1744466715175,0.01,84405.0,84402.0,0.011848]
[1744466715376,0.01,84405.0,84403.0,0.236958]
[1744466716346,0.01,84405.0,84404.0,0.12084154]
[1744466716550,0.00246485,84409.0,84406.0,0.011847]
[1744466716937,0.02246485,84409.0,84406.0,0.011847]
[1744466717085,0.02246485,84409.0,84407.0,0.76835476]
[1744466717282,0.00246485,84409.0,84407.0,0.76598562]
[1744466718502,0.00346485,84409.0,84407.0,0.76598562]
[1744466719383,0.00346485,84409.0,84408.0,0.00236889]
[1744466719607,0.00346485,84409.0,84408.0,0.12321043]
[1744466719823,0.00346485,84409.0,84408.0,0.12084154]
[1744466720197,0.00246485,84409.0,84408.0,0.12084154]
[1744466720590,0.00446485,84409.0,84408.0,0.12084154]
[1744466720790,0.00246485,84409.0,84408.0,0.12321039]
[1744466721006,0.00246485,84409.0,84408.0,0.12421039]
[1744466721205,0.00246485,84409.0,84408.0,0.47975124]
[1744466721460,0.00246485,84409.0,84408.0,0.47738239]
[1744466721655,0.00246485,84409.0,84408.0,0.46284154]
[1744466722815,0.00246485,84409.0,84408.0,0.65700154]
[1744466723023,0.41940585,84409.0,84408.0,0.002]
[1744466723735,0.18246485,84409.0,84408.0,0.238944]
[1744466723937,0.17819194,84409.0,84408.0,0.236944]
[1744466724361,0.18119194,84409.0,84408.0,0.236944]
[1744466724662,0.17919194,84409.0,84408.0,0.236944]
[1744466724866,0.18319194,84409.0,84408.0,0.35778554]
[1744466725072,0.005,84409.0,84408.0,0.35778554]
[1744466725215,0.005,84409.0,84408.0,0.55194554]
[1744466725411,0.008,84409.0,84408.0,0.89194554]
[1744466725666,0.008,84409.0,84408.0,1.30014262]
[1744466726639,0.0004223,84419.0,84417.0,0.236919]
[1744466726856,0.0005622,84418.0,84417.0,0.35776054]
[1744466727259,0.011846,84412.0,84408.0,0.19516]
[1744466727457,0.16,84412.0,84408.0,0.208007]
[1744466727661,0.16,84412.0,84409.0,0.248786]
[1744466728502,0.162,84412.0,84409.0,0.248786]
[1744466728711,0.162,84412.0,84411.0,0.236935]
[1744466729393,0.162,84412.0,84411.0,0.35777654]
[1744466729608,0.002,84412.0,84411.0,0.35777654]
[1744466729764,0.0005622,84418.0,84417.0,0.236919]
[1744466729962,0.0005622,84418.0,84417.0,0.35776054]
[1744466730791,0.0015622,84418.0,84417.0,0.35776054]
[1744466731772,0.0045622,84418.0,84417.0,0.12084154]
[1744466732027,0.0045622,84418.0,84416.0,0.236921]
[1744466732443,0.0045622,84418.0,84416.0,0.23928986]
[1744466732881,0.0004222,84429.0,84426.0,0.236893]
[1744466732882,0.0122662,84429.0,84426.0,0.236893]
[1744466733042,0.0922662,84429.0,84426.0,0.236893]
[1744466733400,0.011844,84428.0,84424.0,0.011844]
[1744466733606,0.05,84428.0,84427.0,0.236891]
[1744466734141,0.07212678,84428.0,84427.0,0.236891]
[1744466735184,0.057,84428.0,84427.0,0.236891]
[1744466735969,0.06,84428.0,84427.0,0.236891]
[1744466736717,0.06,84428.0,84426.0,0.236891]
[1744466736850,0.06,84428.0,84418.0,0.011845]
[1744466737057,0.06,84428.0,84425.0,0.236894]